Cogmind - Beta 15 --- EXPLORER MODE // 2025.06.14 @ 21:03:07 Player: EdibleCrab Result: Destroyed by G-47 Trooper with Particle Gun Performance ------------- Evolutions (1) 500 Regions Visited (2) 400 Robots Destroyed (20) 100 Value Destroyed (573) 573 Prototype IDs (2) 40 Alien Tech Used (0) 0 Bonus (0) 0 TOTAL SCORE: 1613 Bonus ------- None Cogmind --------- Core Integrity 0/400 Matter 184/300 Energy 247/280 System Corruption 0% Temperature Cool (94) Movement Core (400) Ox7 Location -9/Materials Parts ------- > --- POWER (1) -------- Cooled Ion Engine > --- PROPULSION (3) --- (None) > --- UTILITY (4) ------ Improved Heat Sink Medium Storage Unit Signal Interpreter Advanced Targeting Computer > --- WEAPON (2) ------- Improved Medium Laser > --- INVENTORY (10) --- Light Deuterium Engine Light Deuterium Engine Light Deuterium Engine Terrain Scanner Advanced Targeting Computer Advanced Targeting Computer Light Armor Plating Peak State ------------ > --- POWER ------------ Light Deuterium Engine > --- PROPULSION ------- Wheel Wheel Wheel > --- UTILITY ---------- Medium Storage Unit Sensor Array Signal Interpreter Advanced Targeting Computer > --- WEAPON ----------- Beam Rifle Particle Gun > --- INVENTORY -------- Light Deuterium Engine Light Deuterium Engine Improved Heat Sink Terrain Scanner Advanced Targeting Computer Advanced Targeting Computer Advanced Targeting Computer Propulsion Shielding Light Armor Plating Grenade Launcher [Rating: 18] Favorites ----------- Power Light Deuterium Engine Engine Light Deuterium Engine Power Core Light Nuclear Core Propulsion Wheel Treads Light Treads Leg Aluminum Leg Wheel Wheel Hover Unit Hover Unit Utility Medium Storage Unit Device Sensor Array Storage Medium Storage Unit Processor Targeting Computer Protection Propulsion Shielding Weapon Particle Gun Energy Gun Particle Gun Ballistic Gun Light Assault Rifle Launcher Grenade Launcher Impact Weapon Hammer Build | -11 -10 -9 ------- Run | Yrd Mat Mat Slots Evolved 3 | . 1 2 Power . | . . . Propulsion 1 | . . 1 Utility 2 | . 1 1 Weapon . | . . . Parts Attached 32 | 5 9 18 Power 6 | 1 2 3 Engine 5 | 1 1 3 Core 1 | . 1 . Reactor . | . . . Propulsion 11 | 2 2 7 Treads 1 | . . 1 Leg 2 | 2 . . Wheel 6 | . 2 4 Hover 2 | . . 2 Flight . | . . . Utility 8 | 2 1 5 Device 2 | . . 2 Storage 1 | 1 . . Processor 4 | . 1 3 Hackware . | . . . Protection 1 | 1 . . Artifact . | . . . Weapon 7 | . 4 3 Energy Gun 4 | . 1 3 Energy Cannon . | . . . Ballistic Gun 1 | . 1 . Ballistic Cannon . | . . . Launcher 1 | . 1 . Special Weapon . | . . . Impact Weapon 1 | . 1 . Slashing Weapon . | . . . Piercing Weapon . | . . . Special Melee Weapon . | . . . Unidentified Prototypes 2 | . . 2 Parts Lost 9 | . . 9 Power 1 | . . 1 Propulsion 3 | . . 3 Utility 2 | . . 2 Weapon 3 | . . 3 Highest Loss Streak 9 | . . 9 To Critical Strikes . | . . . Average Backups 7 | 3 8 8 Power 1 | . . 2 Propulsion 1 | . 2 . Utility 4 | 2 3 5 Weapon . | 1 1 . Tool/Special . | . . . Unused Backups 16 | . 8 8 Power 4 | . 1 3 Propulsion 4 | . 4 . Utility 6 | . 1 5 Weapon 2 | . 2 . Tool/Special . | . . . Average Slot Usage (%) 91 | . 91 92 Engine 6 | . 3 9 Core 3 | . 7 . Leg 4 | . 10 . Wheel 18 | . 14 22 Hover 1 | . . 2 Device 4 | . . 8 Storage 10 | . 12 10 Processor 15 | . 12 17 Protection 6 | . 12 2 Energy Gun 12 | . 7 16 Ballistic Gun 1 | . 2 . Launcher 1 | . 2 . Impact Weapon 2 | . 3 2 Peak Build Rating 18 | 5 12 18 Average Rating 11 | 4 9 14 On Entrance 5 | . 5 10 Naked Turns . | . . . Heaviest Build 24 | 14 21 24 Greatest Support 30 | 20 20 30 Greatest Overweight (x) 7 | 1 1 7 Average Overweight (x) . | . . . Largest Inventory Capacity 10 | 10 10 10 Average Capacity 9 | 9 10 10 Most Carried 10 | 7 10 10 Average Carried 8 | 3 8 8 Final Capacity 10 | 10 10 10 Final Carried 10 | 7 10 7 Class Distribution -------------------- 100% | Hacker-Mutant Dominant Class ---------------- Hacker-Mutant | -10/Materials Hacker-Mutant | -9/Materials Resources | -11 -10 -9 ----------- Run | Yrd Mat Mat Matter Collected 494 | 250 90 154 Remotely . | . . . Salvage Created 728 | . 79 649 Parts 47 | . 4 43 Haulers Intercepted 1 | . . 1 Recyclers Shooed . | . . . Parts Field Recycled . | . . . Retrieved Matter . | . . . Parts Self-Destructed . | . . . Prevented . | . . . Kills | -11 -10 -9 ------- Run | Yrd Mat Mat Combat Hostiles Destroyed 14 | . 2 12 Guns 14 | . 2 12 Classes Destroyed 6 | . 1 5 Worker 1 | . . 1 Hauler 1 | . . 1 Watcher 4 | . . 4 Swarmer 2 | . . 2 Grunt 7 | . 2 5 Sentry 5 | . . 5 Best Kill Streak 5 | . 2 5 Combat Bots Only 4 | . 2 4 Max Kills in Single Turn 2 | . 1 2 Gunslinging . | . . . Exploded . | . . . Melee . | . . . Uniques/NPCs Destroyed . | . . . Combat | -11 -10 -9 -------- Run | Yrd Mat Mat Hostile Shots Fired 189 | . 2 187 Missed 53 | . 1 52 Hits 136 | . 1 135 Projectile 136 | . 1 135 Critical Strikes 7 | . . 7 Actively Blocked 1 | . . 1 Damage Taken 1197 | . 7 1190 Core 408 | . . 408 Absorbed by Shields . | . . . Redirected to Shielding 33 | . 2 31 Ignored by Resistances 737 | . 4 733 Regen/Repaired (Parts) 21 | . 14 7 Core Remaining (%) 100 | 100 100 . Volleys Fired 68 | . 8 60 Largest 2 | . 1 2 Hottest 121 | . 65 121 Shots Fired 96 | . 8 88 Gun 96 | . 8 88 Cannon . | . . . Launcher . | . . . Special . | . . . Kinetic . | . . . Thermal 96 | . 8 88 Explosive . | . . . Electromagnetic . | . . . Robot Hit Streak 20 | . 3 20 Robot Miss Streak 2 | . . 2 Penetration Max . | . . . Secondary Targets 2 | . . 2 Max Gunslinging Chain 1 | . . 1 Shots Hit Robots 75 | . 3 72 Core Hits 32 | . 2 30 Critical Kills . | . . . Critical Parts Destroyed . | . . . Critical Strikes 4 | . . 4 Burn 4 | . . 4 Melee Attacks 1 | . 1 . Impact 1 | . 1 . Slashing . | . . . Piercing . | . . . Sneak Attacks . | . . . Combat Hostiles . | . . . Follow-up Attacks . | . . . Damage Inflicted 1169 | . 46 1123 Guns 1169 | . 46 1123 Cannons . | . . . Explosions . | . . . Melee . | . . . Ramming . | . . . Kinetic . | . . . Thermal 1169 | . 46 1123 Explosive . | . . . Electromagnetic . | . . . Impact . | . . . Slashing . | . . . Piercing . | . . . Highest Corruption . | . . . Average Corruption . | . . . Corruption Purged . | . . . Corruption Blocked . | . . . Overload Shots . | . . . Overflow Damage . | . . . Projectiles . | . . . Explosions . | . . . Melee . | . . . Knockbacks . | . . . Impact . | . . . Kinetic . | . . . Secondary . | . . . Self-Inflicted Damage . | . . . Shots . | . . . Rammed . | . . . Targets Rammed . | . . . Kicked . | . . . Crushed . | . . . Highest Temperature 697 | . 84 697 Average Temperature 175 | . 32 189 Received Heat Transfer 741 | . 6 735 Effects 15 | . . 15 Shutdowns 1 | . . 1 Energy Bleed 4 | . . 4 Interference 4 | . . 4 Matter Decay 2 | . . 2 Short Circuit 1 | . . 1 Damage (minor) 1 | . . 1 Damage (major) 2 | . . 2 Siege Activations . | . . . Martial Activations . | . . . Shielding Activations . | . . . Robots Disrupted . | . . . Combat Hostiles . | . . . Robots Corrupted . | . . . Combat Hostiles . | . . . Parts Fried . | . . . Impact Corruptions . | . . . Robots Melted . | . . . Combat Hostiles . | . . . Parts Melted 2 | . . 2 Heat Transferred 3182 | . 111 3071 Parts Sabotaged . | . . . Parts Stolen . | . . . Parts Stripped . | . . . Power Chain Reactions . | . . . Alert | -11 -10 -9 ------- Run | Yrd Mat Mat Maximum Alert Level . | . . . Low Security (%) 100 | 100 100 100 Level 1 . | . . . Level 2 . | . . . Level 3 . | . . . Level 4 . | . . . Level 5 . | . . . High Security . | . . . Max Security . | . . . Peak Influence 60 | . 35 60 Initial 10 | . . 10 Average 7 | . 1 14 Influence Increases 423 | . 54 369 Destroy 0b10 Robot/C 280 | . 40 240 Destroy 0b10 Robot/NC 30 | . . 30 Destroy Leader 100 | . 10 90 Successful Hack 8 | . . 8 Disable Machine 4 | . 4 . Destroy Structure 1 | . . 1 Influence Decreases 386 | . 19 367 Entered New Map 25 | . . 25 Time Decay 281 | . 19 262 Lost Part 80 | . . 80 Squads Dispatched 2 | . 1 1 Investigation 1 | . 1 . Extermination . | . . . Reinforcement 1 | . . 1 Assault . | . . . Garrison . | . . . Intercept . | . . . Searches Triggered . | . . . Construction Impeded . | . . . Haulers Reinforced . | . . . Active Scanning Responses . | . . . Cargo Convoy Interrupts . | . . . Stealth | -11 -10 -9 --------- Run | Yrd Mat Mat Distress Signals 3 | . 1 2 Communications Jammed . | . . . Distress Signals . | . . . Times Spotted 26 | . 3 23 Peak Tracking Total 10 | . 2 10 Tactical Retreats . | . . . Traps | -11 -10 -9 ------- Run | Yrd Mat Mat Traps Triggered . | . . . Indirectly . | . . . Trap Hack Attempts . | . . . Triggered . | . . . Disarmed . | . . . Reprogrammed . | . . . Reused . | . . . Traps Extracted . | . . . Installed . | . . . Triggered . | . . . Machines | -11 -10 -9 ---------- Run | Yrd Mat Mat Machines Disabled 1 | . 1 . Max in Single Turn 1 | . 1 . Machines Repaired . | . . . Machines Dismantled . | . . . Machines Sabotaged . | . . . Overloaded Fab Kills . | . . . Hacking | -11 -10 -9 --------- Run | Yrd Mat Mat Machines Accessed 9 | . 5 4 Terminals 7 | . 4 3 Fabricators . | . . . Repair Stations 2 | . 1 1 Recycling Units . | . . . Scanalyzers . | . . . Garrison Access . | . . . Total Hacks 19 | . 10 9 Successful 17 | . 8 9 Failed 2 | . 2 . Catastrophic . | . . . Database Lockouts . | . . . Manual . | . . . Terminals 13 | . 6 7 Fabricators . | . . . Repair Stations 6 | . 4 2 Recycling Units . | . . . Scanalyzers . | . . . Garrison Access . | . . . Terminal Hacks 11 | . 4 7 Emergency Access Points 2 | . 1 1 Locate Traps 4 | . 1 3 Maintenance Status 1 | . . 1 Assault Status 1 | . . 1 Hauler Manifests 1 | . . 1 Zone Layout 2 | . 2 . Fabricator Hacks . | . . . Repair Station Hacks 6 | . 4 2 Scan Component 3 | . 2 1 Repair 3 | . 2 1 Recycling Unit Hacks . | . . . Scanalyzer . | . . . Garrison Access Hacks . | . . . Unauthorized Hacks . | . . . Terminals . | . . . Fabricators . | . . . Repair Stations . | . . . Recycling Units . | . . . Scanalyzers . | . . . Garrison Access . | . . . Data Cores Recovered . | . . . Used . | . . . Hacking Detections 4 | . 2 2 Full Trace Events 1 | . 1 . Feedback Events . | . . . Feedback Blocked . | . . . Robot Schematics Acquired . | . . . Robots Built . | . . . Authchips . | . . . Time . | . . . Total Robot Build Rating . | . . . Part Schematics Acquired . | . . . Parts Built . | . . . Authchips . | . . . Time . | . . . Total Part Build Rating . | . . . Parts Repaired 2 | . 1 1 Time 102 | . 76 26 Parts Recycled . | . . . Recycled Matter . | . . . Retrieved Matter . | . . . Retrieved Components . | . . . Parts Scanalyzed . | . . . Part Schematics Acquired . | . . . Parts Damaged . | . . . Bothacking | -11 -10 -9 ------------ Run | Yrd Mat Mat Used RIF Installer . | . . . Robots Hacked . | . . . Non-combat . | . . . Combat . | . . . Robot Hacks Applied . | . . . Relay Couplers Released . | . . . Fabnet Peak Effective % . | . . . Robots Rewired . | . . . Allies Hacked . | . . . Hacks Repelled . | . . . Allies | -11 -10 -9 -------- Run | Yrd Mat Mat Total Allies . | . . . Largest Group . | . . . Highest-Rated Group . | . . . Highest-Rated Ally . | . . . Total Orders . | . . . Ally Attacks . | . . . Total Damage . | . . . Kills . | . . . Allies Corrupted . | . . . Allies Melted . | . . . Intel | -11 -10 -9 ------- Run | Yrd Mat Mat Active Infowar (turns) 388 | . . 388 Sensors 388 | . . 388 Robot Analysis Total . | . . . Derelict Logs Recovered . | . . . Drone Launches . | . . . Drone Recoveries . | . . . Exploration | -11 -10 -9 ------------- Run | Yrd Mat Mat Turns Passed 966 | 118 377 471 Spaces Moved 644 | 85 287 272 Core 10 | 4 . 6 Treads 1 | . . 1 Legs 193 | 81 112 . Wheels 413 | . 175 238 Hover 27 | . . 27 Flight . | . . . Fastest Speed 50 | 50 80 80 Average Speed 97 | 120 97 90 Slowest Speed 400 | 190 120 400 Overloaded Moves . | . . . Propulsion Burnouts . | . . . Robots Hopped . | . . . Potential Cave-ins . | . . . Cave-ins Triggered . | . . . Exploration Rate (%) 30 | 4 49 37 Regions Visited 2 Branch Regions . Pre-discovered Areas . | . . . Known Exits Taken 2 | 1 1 . Unknown Exits Taken . | . . . Scrap Searched . | . . . Spaces Dug . | . . . Terrain Destroyed . | . . . Melee . | . . . Projectile . | . . . AOE . | . . . Terrain Rammed . | . . . Walls Destroyed . | . . . Machines Disabled . | . . . Actions | -11 -10 -9 --------- Run | Yrd Mat Mat Total 882 | 98 376 408 Wait 82 | 2 45 35 Move 642 | 84 286 272 Hop . | . . . Pick Up 31 | 7 14 10 Fast Attach 18 | 5 6 7 Attach 6 | . 2 4 Detach 1 | . 1 . Swap 10 | . 1 9 Drop 23 | . 12 11 Fire 68 | . 8 60 Melee 1 | . 1 . Ram . | . . . Kick . | . . . Crush . | . . . Escape Stasis . | . . . Rewire . | . . . Trap . | . . . Miscellaneous . | . . . Route ------- -11/Scrapyard -10/Materials (discovered 2 exits: *Mat / *Min) -9/Materials (discovered 1 exit: *Min) History --------- Turn | Location | Event 8 | -11/Scrapyard | Identified exit to Materials 8 | -11/Scrapyard | Discovered exit to Materials (range 15) 119 | -11/Scrapyard | Entered Materials 119 | -10/Materials | Evolved 1 slot: Utility x1 120 | -10/Materials | Met a group of wandering Federalists 307 | -10/Materials | Identified exit to Materials 307 | -10/Materials | Discovered exit to Materials (range 17) 307 | -10/Materials | Identified exit to Mines 307 | -10/Materials | Discovered exit to Mines (range 16) 319 | -10/Materials | Build established: Hacker-Mutant 471 | -10/Materials | Repaired Imp. Heat Sink 496 | -10/Materials | Entered another Materials area 496 | -9/Materials | Evolved 2 slots: Propulsion x1, Utility x1 715 | -9/Materials | Repaired Sensor Array 832 | -9/Materials | Identified exit to Mines 832 | -9/Materials | Discovered exit to Mines (range 12) 929 | -9/Materials | Core integrity fell below 50% 954 | -9/Materials | Core integrity fell below 20% 967 | -9/Materials | Destroyed by G-47 Trooper with Particle Gun Last Messages --------------- 00952_ Overheating: Energy bleed (-26). 00952_ Beam Rifle destroyed. 00952_ Broken Lgt. Treads destroyed. 00952_ R-06 Scavenger collects Imp. Ion Engine. 00952_ R-06 Scavenger collects Heat Sink. 00952_ K-01 Serf collects debris. 00955_ R-06 Scavenger collects Lgt. Treads. 00955_ K-01 Serf collects debris. 00957_ Acquired Prototype Energy Gun. 00957_ Identified Imp. Medium Laser. 00957_ K-01 Serf collects debris. 00957_ R-06 Scavenger collects Beam Rifle. 00959_ K-01 Serf collects debris. 00960_ R-06 Scavenger collects Lgt. Treads. 00960_ W-16 Scout destroyed. 00960_ K-01 Serf collects debris. 00964_ K-01 Serf cleans the Fusion Modulator. 00964_ Y-45 Defender destroyed. 00965_ K-01 Serf collects debris. 00967_ K-01 Serf cleans the Fusion Modulator. Map ----- +----------------------------------------------------+ | ?????????????????????????????????????????????????? | | ?????????????????????????????????????????????????? | | ##???????????????????????????????????????????????? | | #???????????????????????????????????????????????? | | #???????????????????????????????????????????????? | | #?????^^^???????????????????????????????????????? | | #?????^^^?###########???????????????????????????? | | #?????? ??# #???????????????????????????? | | ??????? ??# [ #???????????????????????????? | | ????????# ?# = #???????????????????????????? | | ????????# ?# == #???????????????????????????? | | ????????# ?# """ """ +???????????????????????????? | | ????????# ?# """ """ #???????????????????????????? | | ????????# ?# """ """ #???????????????????????????? | | ????????# ## #???????????????????????????? | | ????????# ######+#####???????????????????????????? | | ???###### #### ############/## ????????????? | | #### ???????????? | | T ???????????? | | ### k ???????????? | | ####+### ## ####%##########???????????????? | | # # ### ##?##k######???????????????????? | | # [ + #?# #??#%% #???????????????????? | | #%! # #?# #??#!!= #???????????????????? | | #! + #?# #??#%*![ #???????????????????? | | #! ## ##?# #??#[%!@ #???????????????????? | | ## ## #?? ??#g!![ #???????????????????? | | ?#########*#?# "?#g= %r #???????????????????? | | ???#######+### ||#|kY = #???????????????????? | | ???# %%T # > ""#%=""" #??????????????????? | | ???# *= # !!#= """k ##??????????????????? | | ???# # ""# u""" #???????????????????? | | ???# # "# #???????????????????? | | ???############ #######Y####???????????????????? | | ??????????????#^ #?????? ???????????????????????? | | ??????????????? ??????????????????????????????? | | ??????????????? ???????????????????????????????? | | ?????????????????????????????????????????????????? | | ?????????????????????????????????????????????????? | | ?????????????????????????????????????????????????? | | ?????????????????????????????????????????????????? | | ?????????????????????????????????????????????????? | | ?????????????????????????????????????????????????? | | ?????????????????????????????????????????????????? | | ?????????????????????????????????????????????????? | | ?????????????????????????????????????????????????? | | ?????????????????????????????????????????????????? | | ?????????????????????????????????????????????????? | | #???????????????????????????????????????????????? | | #???????????????????????????????????????????????? | +----------------------------------------------------+ Best States ------------- Heat Dissipation 42 Energy Generation 14 Energy Capacity 280 Matter Stores 300 Matter Capacity 300 Sight Range 16 Robot Scan Range 14 Terrain Scan Density 10 Resistance: KI 35 Resistance: TH 35 Resistance: EX 35 Resistance: EM 35 Resistance: I 35 Resistance: S 35 Resistance: P 35 Propulsion Shielding 33 Evasion (%) 55 Targeting Accuracy 8 Recoil Reduction 1 Offensive Hacking 20 Item Schematics ----------------- None Robot Schematics ------------------ None Fabricated ------------ Nothing Repaired ---------- Imp. Heat Sink | 65% | -10/Materials Sensor Array | 65% | -9/Materials Alien Tech Used ----------------- None Achievements -------------- None Challenges ------------ None Game ------ Seed SmartbombAssaultGun Manual? 0 Play Time 00:43:17 Cumulative 6.3 hours Start 2025.06.14 @ 20:17:01 End 2025.06.14 @ 21:03:07 Sessions 1 Manual Loads 0 Difficulty Explorer Special Mode None Game No. 11 Rogue 6 Adventurer 0 Explorer 5 Win Type - Total 0 Types 0/0/0/0/0/0/0/0/0/0 Lore% 7 Gallery% 10 Achievement% 10 Wizard Run 0 Options --------- Layout 1 ASCII 0 Keyboard 0 Movement Mouse Keybinds 0 Fullscreen 1 Font 32/SmallcapsGlow Map View 77x35 Zoom Use 0% Tactical HUD 1 Map Filters NONE Filters NONE Steam 1 RUN: 4000be7c-1e12-4957-9cbd-6b116f80617c